Cogmind - Beta 13 @@@ ROGUE MODE // 2024.04.09 @ 21:36:26 Player: Ben Meat Bible Result: Destroyed by C-17 Slicer with Blade Saw Performance ------------- Evolutions (4) 2000 Regions Visited (10) 2000 Robots Destroyed (40) 200 Value Destroyed (1047) 1047 Prototype IDs (7) 140 Alien Tech Used (0) 0 Bonus (911) 911 TOTAL SCORE: 6298 Bonus ------- High Alert Combat Kills 15 Follower Combat Kills 66 Entered DSFs 500 Met Imprinter 300 Was Imprinted 300 Friendly Fire -270 Cogmind --------- Core Integrity 0/850 Matter 275/300 Energy 100/100 System Corruption 17% Temperature Cool (0) Movement Core (50) Location -6/DSF Parts ------- > --- POWER (1) -------- (None) > --- PROPULSION (4) --- (None) > --- UTILITY (6) ------ (None) > --- WEAPON (4) ------- (None) > --- INVENTORY (5) ---- Improved Ion Engine Improved Deuterium Engine Flight Unit Peak State ------------ > --- POWER ------------ Light Angular Momentum Engine > --- PROPULSION ------- Gravmag System Cooled Aerolev Unit Combat Airjet > --- UTILITY ---------- Advanced Sensor Array Experimental Sensor Array Advanced Terrain Scanner Hacking Suite Hacking Drone Bay Phasing AFG > --- WEAPON ----------- Pulse Rifle Pulse Rifle Proton Cannon Powered Hammer > --- INVENTORY -------- Improved Ion Engine Improved Deuterium Engine Flight Unit Precision Shock Rifle Flak Gun [Rating: 80] Favorites ----------- Power Improved Ion Engine Engine Improved Ion Engine Power Core Micro Nuclear Core Propulsion Hover Unit Wheel Wheel Hover Unit Hover Unit Flight Unit Flight Unit Utility Hacking Suite Device Hacking Drone Bay Storage Small Storage Unit Processor Signal Interpreter Hackware Hacking Suite Weapon Mini Grenade Launcher Energy Gun Pulse Rifle Energy Cannon Proton Cannon Ballistic Gun Shotgun Launcher Mini Grenade Launcher Special Weapon Remote Datajack Impact Weapon Powered Hammer Piercing Weapon CR-A16's Pointy Stick Special Melee Weapon Advanced Datajack Build | -11 -10 -10 -9 -9 -7 -6 -6 -6 -6 -6 ------- Run | Yrd Mat Min Mat Min Zio Pro Fac Was Fac DSF Slots Evolved 8 | . . . 2 . . . 6 . . . Power . | . . . . . . . . . . . Propulsion 2 | . . . 2 . . . . . . . Utility 4 | . . . . . . . 4 . . . Weapon 2 | . . . . . . . 2 . . . Parts Attached 77 | 7 13 11 6 1 5 4 23 1 . 6 Power 8 | 1 2 2 1 . . 1 1 . . . Engine 7 | 1 2 2 1 . . 1 . . . . Core 1 | . . . . . . . 1 . . . Reactor . | . . . . . . . . . . . Propulsion 20 | 2 3 5 2 . 1 . 4 . . 3 Treads . | . . . . . . . . . . . Leg . | . . . . . . . . . . . Wheel 4 | 2 . . . . . . 2 . . . Hover 10 | . . 2 2 . 1 . 2 . . 3 Flight 6 | . 3 3 . . . . . . . . Utility 23 | 2 3 2 1 1 4 1 9 . . . Device 15 | 1 1 . . 1 4 1 7 . . . Storage 2 | 1 . 1 . . . . . . . . Processor 4 | . 2 1 . . . . 1 . . . Hackware 2 | . . . 1 . . . 1 . . . Protection . | . . . . . . . . . . . Artifact . | . . . . . . . . . . . Weapon 26 | 2 5 2 2 . . 2 9 1 . 3 Energy Gun 9 | 1 1 1 . . . . 5 . . 1 Energy Cannon 5 | . 2 . 1 . . . 2 . . . Ballistic Gun 7 | 1 2 . 1 . . . 1 . . 2 Ballistic Cannon . | . . . . . . . . . . . Launcher 1 | . . 1 . . . . . . . . Special Weapon 1 | . . . . . . . 1 . . . Impact Weapon 1 | . . . . . . 1 . . . . Slashing Weapon . | . . . . . . . . . . . Piercing Weapon 1 | . . . . . . 1 . . . . Special Melee Weapon 1 | . . . . . . . . 1 . . Unidentified Prototypes 7 | . . . 1 1 2 . 3 . . . Corrupted Parts 1 | . . . . . . . . 1 . . System Corruption 6 | . . . . . . . . 6 . . Parts Lost 27 | . . 7 . . . 4 3 4 . 9 Power 3 | . . 2 . . . . . 1 . . Propulsion 10 | . . 3 . . . 2 2 1 . 2 Utility 4 | . . 1 . . . . 1 . . 2 Weapon 10 | . . 1 . . . 2 . 2 . 5 Highest Loss Streak 9 | . . 7 . . . 3 2 4 . 9 To Critical Strikes . | . . . . . . . . . . . Average Slot Usage (%) 87 | . 99 82 69 88 98 86 90 72 . 38 Engine 8 | . 14 12 11 11 11 11 2 . . . Core 1 | . . . . . . . 3 2 . . Wheel 4 | . 19 . . . . . 8 8 . 3 Hover 22 | . . 9 15 33 42 31 13 9 . 4 Flight 1 | . 8 5 . . . . . . . . Device 13 | . 13 2 . . 10 11 29 11 . 3 Storage 1 | . 11 3 8 . . . . . . . Processor 3 | . 2 20 11 10 . . . 6 . 5 Hackware 7 | . . . 2 11 11 11 6 13 . 9 Energy Gun 1 | . 6 . . . . . 4 . . . Energy Cannon 2 | . 12 . . . . . 4 3 . . Ballistic Gun 6 | . 9 16 10 11 11 4 2 2 . . Launcher 5 | . . 10 11 11 11 4 . . . . Special Weapon 1 | . . . . . . . 3 6 . 3 Impact Weapon 3 | . . . . . . 6 6 6 . 3 Piercing Weapon 1 | . . . . . . 6 1 . . . Naked Turns 9 | . . . . . . . . . . 9 Heaviest Build 57 | 14 17 7 12 12 31 16 57 33 8 8 Greatest Support 33 | 20 20 12 24 24 33 33 30 20 10 27 Greatest Overweight (x) 5 | . 3 1 . . . . 5 1 . 1 Average Overweight (x) . | . . . . . . . 1 . . . Largest Inventory Capacity 8 | 8 8 5 5 5 5 5 5 5 5 5 Average Capacity 5 | 7 7 5 5 5 5 5 5 5 5 5 Most Carried 7 | . 7 5 5 5 5 5 5 5 5 5 Average Carried 4 | . 3 2 5 5 4 4 4 5 5 4 Final Capacity 8 | 8 5 5 5 5 5 5 5 5 5 5 Final Carried 5 | . 5 5 5 5 4 4 5 5 5 3 Class Distribution -------------------- 47% | Scavenger-Mutant 29% | Mutant 7% | Scavenger-Gunner 6% | Scavenger-Skirmisher 3% | Scavenger-Tank 3% | Hacker-Mutant Dominant Class ---------------- Mutant | -10/Materials Scavenger-Mutant | -10/Mines Scavenger-Mutant | -9/Materials Scavenger-Mutant | -9/Mines Scavenger-Mutant | -7/Zion Mutant | -6/Proximity Caves Scavenger-Gunner | -6/Factory Hacker-Mutant | -6/Waste Hacker-Mutant | -6/Factory Mutant | -6/DSF Resources | -11 -10 -10 -9 -9 -7 -6 -6 -6 -6 -6 ----------- Run | Yrd Mat Min Mat Min Zio Pro Fac Was Fac DSF Matter Collected 1194 | 278 181 100 65 36 37 177 219 . . 101 Remotely 79 | . 71 8 . . . . . . . . Salvage Created 1328 | 89 356 25 121 114 . 65 364 . . 194 Parts 85 | 6 32 2 7 17 . 2 16 . . 3 Haulers Intercepted 3 | . . . 1 . . . 1 . . 1 Recyclers Shooed . | . . . . . . . . . . . Parts Field Recycled . | . . . . . . . . . . . Retrieved Matter . | . . . . . . . . . . . Parts Self-Destructed 5 | . . . . . . 5 . . . . Prevented 6 | . . . . . . 6 . . . . Kills | -11 -10 -10 -9 -9 -7 -6 -6 -6 -6 -6 ------- Run | Yrd Mat Min Mat Min Zio Pro Fac Was Fac DSF Combat Hostiles Destroyed 25 | . 6 2 2 7 . 1 5 . . 2 Melee 5 | . . . . . . 1 4 . . . Guns 8 | . 2 1 . 3 . . 1 . . 1 Cannons 4 | . 4 . . . . . . . . . AOE 7 | . . 1 2 4 . . . . . . Classes Destroyed 16 | 2 5 2 2 1 . 1 1 . . 2 Worker 3 | . 1 . . 1 . . 1 . . . Builder 1 | . 1 . . . . . . . . . Tunneler 1 | 1 . . . . . . . . . . Hauler 3 | . . . 1 . . . 1 . . 1 Recycler 2 | 1 1 . . . . . . . . . Operator 1 | . . . 1 . . . . . . . Watcher 4 | . 3 . 1 . . . . . . . Swarmer 7 | . 3 . . 4 . . . . . . Cutter 1 | . . . . . . . . . . 1 Grunt 8 | . 3 . 2 2 . 1 . . . . Duelist 1 | . . . . 1 . . . . . . Sentry 2 | . . . . . . . 2 . . . Demolisher 1 | . . 1 . . . . . . . . Specialist 1 | . . . . . . . . . . 1 Programmer 4 | . . . . . . 1 3 . . . Assembled 1 | . . 1 . . . . . . . . Best Kill Streak 8 | 2 5 2 3 8 . 1 2 . . 1 Combat Bots Only 7 | . 4 2 2 7 . 1 1 . . 1 Max Kills in Single Turn 2 | 1 2 1 2 2 . 1 1 . . 1 Gunslinging . | . . . . . . . . . . . Exploded 1 | . . 1 1 1 . . . . . . Melee 1 | . . . . . . 1 1 . . . Uniques/NPCs Destroyed . | . . . . . . . . . . . Combat | -11 -10 -10 -9 -9 -7 -6 -6 -6 -6 -6 -------- Run | Yrd Mat Min Mat Min Zio Pro Fac Was Fac DSF Hostile Shots Fired 251 | . 30 16 3 17 . 20 95 2 . 68 Missed 77 | . 5 5 1 6 . 6 31 . . 23 Damage Taken 3001 | . 214 413 74 142 . 254 639 95 . 1170 Core 1191 | . 56 155 13 25 . 84 93 . . 765 Absorbed by Shields 54 | . . . . . . . 8 . . 46 Core Remaining (%) 61 | 100 . 15 . . . 69 . . . . Volleys Fired 97 | 3 38 8 8 9 . 8 21 . . 2 Largest 3 | 2 2 2 2 2 . 1 3 . . 2 Hottest 201 | 60 120 60 53 53 . 30 201 . . 83 Shots Fired 160 | 6 73 16 13 13 . 8 29 . . 2 Gun 83 | 6 31 15 8 9 . . 13 . . 1 Cannon 48 | . 42 . . . . . 6 . . . Launcher 18 | . . 1 5 4 . 8 . . . . Special 11 | . . . . . . . 10 . . 1 Kinetic 50 | 3 17 12 8 9 . . . . . 1 Thermal 70 | 3 56 3 . . . . 8 . . . Explosive 18 | . . 1 5 4 . 8 . . . . Electromagnetic 11 | . . . . . . . 11 . . . Robot Hit Streak 11 | 4 10 5 7 4 . . 11 . . 4 Robot Miss Streak 8 | . 8 1 2 5 . . 2 . . 2 Penetration Max . | . . . . . . . . . . . Secondary Targets . | . . . . . . . . . . . Shots Hit Robots 114 | 4 39 12 5 7 . 4 36 . . 7 Core Hits 66 | 3 17 5 8 11 . 7 12 . . 3 Critical Kills 2 | . . . . . . . 2 . . . Critical Parts Destroyed 6 | . . . . . . 1 3 . . 2 Critical Strikes 8 | . . . . . . 1 5 . . 2 Smash 8 | . . . . . . 1 5 . . 2 Melee Attacks 34 | . . . . . . 9 19 . . 6 Impact 29 | . . . . . . 8 18 . . 3 Slashing . | . . . . . . . . . . . Piercing 2 | . . . . . . 1 1 . . . Sneak Attacks 6 | . . . . . . . 2 . . 4 Combat Hostiles 3 | . . . . . . . . . . 3 Follow-up Attacks 2 | . . . . . . 1 1 . . . Damage Inflicted 2930 | 43 610 136 346 374 . 344 864 . . 213 Guns 770 | 43 231 111 60 85 . . 213 . . 27 Cannons 430 | . 379 . . . . . 51 . . . Explosions 770 | . . 25 286 289 . 170 . . . . Melee 960 | . . . . . . 174 600 . . 186 Ramming . | . . . . . . . . . . . Kinetic 426 | 33 142 79 60 85 . . . . . 27 Thermal 655 | 10 468 32 . . . . 145 . . . Explosive 770 | . . 25 286 289 . 170 . . . . Electromagnetic 119 | . . . . . . . 119 . . . Impact 892 | . . . . . . 139 567 . . 186 Slashing . | . . . . . . . . . . . Piercing 68 | . . . . . . 35 33 . . . Highest Corruption 17 | . . . . . . . 4 17 17 17 Average Corruption 6 | . . . . . . . 3 9 17 17 Corruption Purged . | . . . . . . . . . . . Corruption Blocked . | . . . . . . . . . . . Effects 25 | . . . . . . . 15 3 . 7 Message Errors 2 | . . . . . . . 2 . . . Matter Fused 8 | . . . . . . . 3 . . 5 Heat Flow Errors 3 | . . . . . . . 2 . . 1 Energy Discharges 4 | . . . . . . . 4 . . . Parts Rejected 1 | . . . . . . . . 1 . . Data Loss (minor) 5 | . . . . . . . 4 1 . . Misdirections 1 | . . . . . . . . 1 . . Weapon Failures 1 | . . . . . . . . . . 1 Overload Shots . | . . . . . . . . . . . Overflow Damage 503 | . 5 . . . . 117 195 . . 186 Projectiles 5 | . 5 . . . . . . . . . Explosions 36 | . . . . . . 36 . . . . Melee 462 | . . . . . . 81 195 . . 186 Knockbacks 1 | . . . . . . . 1 . . . Impact 1 | . . . . . . . 1 . . . Kinetic . | . . . . . . . . . . . Secondary . | . . . . . . . . . . . Self-Inflicted Damage 114 | . . . 48 24 . 42 . . . . Shots 5 | . . . 1 2 . 2 . . . . Rammed . | . . . . . . . . . . . Targets Rammed . | . . . . . . . . . . . Kicked . | . . . . . . . . . . . Crushed . | . . . . . . . . . . . Highest Temperature 521 | . 521 20 19 1 . 2 194 . . 46 Average Temperature 181 | . 242 5 7 1 . 2 73 . . 46 Received Heat Transfer 201 | . 18 . 18 12 . 12 96 . . 45 Effects 12 | . 12 . . . . . . . . . Shutdowns 3 | . 3 . . . . . . . . . Energy Bleed 1 | . 1 . . . . . . . . . Interference 3 | . 3 . . . . . . . . . Short Circuit 2 | . 2 . . . . . . . . . Damage (major) 3 | . 3 . . . . . . . . . Siege Activations . | . . . . . . . . . . . Robots Corrupted . | . . . . . . . . . . . Combat Hostiles . | . . . . . . . . . . . Parts Fried 6 | . . . . . . 1 1 . . 4 Impact Corruptions 15 | . . . . . . 4 7 . . 4 Robots Melted . | . . . . . . . . . . . Combat Hostiles . | . . . . . . . . . . . Parts Melted . | . . . . . . . . . . . Heat Transferred 1373 | 25 1014 75 . . . . 259 . . . Parts Sabotaged . | . . . . . . . . . . . Parts Stolen . | . . . . . . . . . . . Parts Stripped . | . . . . . . . . . . . Power Chain Reactions . | . . . . . . . . . . . Alert | -11 -10 -10 -9 -9 -7 -6 -6 -6 -6 -6 ------- Run | Yrd Mat Min Mat Min Zio Pro Fac Was Fac DSF Peak Influence 419 | 10 228 103 204 316 . . 419 81 28 61 Initial 300 | . 6 88 25 79 . . 300 66 28 21 Average 191 | 4 116 68 110 300 . . 283 51 28 28 Maximum Alert Level 2 | . 1 . 1 1 . . 2 . . . Low Security (%) 48 | 100 60 100 97 3 . . 20 100 100 100 Level 1 49 | . 40 . 2 96 . . 74 . . . Level 2 1 | . . . . . . . 4 . . . Level 3 . | . . . . . . . . . . . Level 4 . | . . . . . . . . . . . Level 5 . | . . . . . . . . . . . High Security . | . . . . . . . . . . . Max Security . | . . . . . . . . . . . Squads Dispatched 6 | . 2 . . . . . 3 . . 1 Investigation 2 | . 1 . . . . . 1 . . . Extermination 2 | . . . . . . . 2 . . . Reinforcement 2 | . 1 . . . . . . . . 1 Assault . | . . . . . . . . . . . Garrison . | . . . . . . . . . . . Intercept . | . . . . . . . . . . . Searches Triggered . | . . . . . . . . . . . Construction Impeded . | . . . . . . . . . . . Haulers Reinforced . | . . . . . . . . . . . Active Scanning Responses . | . . . . . . . . . . . Cargo Convoy Interrupts . | . . . . . . . . . . . Stealth | -11 -10 -10 -9 -9 -7 -6 -6 -6 -6 -6 --------- Run | Yrd Mat Min Mat Min Zio Pro Fac Was Fac DSF Distress Signals 11 | . 1 . . . . 10 . . . . Communications Jammed . | . . . . . . . . . . . Distress Signals . | . . . . . . . . . . . Times Spotted 74 | . 18 12 6 7 . 7 8 5 . 11 Peak Tracking Total 20 | . 5 20 2 4 . 2 2 5 . 7 Tactical Retreats 6 | . 1 1 . . . . 2 . . 2 Traps | -11 -10 -10 -9 -9 -7 -6 -6 -6 -6 -6 ------- Run | Yrd Mat Min Mat Min Zio Pro Fac Was Fac DSF Traps Triggered 6 | . 1 . . . . 1 2 . . 2 Indirectly . | . . . . . . . . . . . Trap Hack Attempts . | . . . . . . . . . . . Triggered . | . . . . . . . . . . . Disarmed . | . . . . . . . . . . . Reprogrammed . | . . . . . . . . . . . Reused . | . . . . . . . . . . . Traps Extracted . | . . . . . . . . . . . Installed . | . . . . . . . . . . . Triggered . | . . . . . . . . . . . Most Traps Carried 3 | . . 3 3 3 3 . . . . . Machines | -11 -10 -10 -9 -9 -7 -6 -6 -6 -6 -6 ---------- Run | Yrd Mat Min Mat Min Zio Pro Fac Was Fac DSF Machines Disabled 6 | . 1 . 1 2 . . 2 . . . Max in Single Turn 2 | . 1 . 1 2 . . 1 . . . Machines Repaired . | . . . . . . . . . . . Machines Dismantled . | . . . . . . . . . . . Machines Sabotaged . | . . . . . . . . . . . Overloaded Fab Kills . | . . . . . . . . . . . Hacking | -11 -10 -10 -9 -9 -7 -6 -6 -6 -6 -6 --------- Run | Yrd Mat Min Mat Min Zio Pro Fac Was Fac DSF Machines Accessed 10 | . 1 . 3 . 1 . 4 . 1 . Terminals 3 | . . . 1 . . . 1 . 1 . Fabricators . | . . . . . . . . . . . Repair Stations 1 | . . . 1 . . . . . . . Recycling Units 3 | . 1 . 1 . . . 1 . . . Scanalyzers 1 | . . . . . . . 1 . . . Garrison Access 1 | . . . . . . . 1 . . . Total Hacks 27 | . 4 . 9 . 5 . 7 . 2 . Successful 18 | . 3 . 4 . 5 . 5 . 1 . Failed 9 | . 1 . 5 . . . 2 . 1 . Catastrophic 1 | . . . . . . . 1 . . . Database Lockouts . | . . . . . . . . . . . Manual 6 | . . . . . 2 . 4 . . . Terminals 6 | . . . 3 . . . 1 . 2 . Fabricators . | . . . . . . . . . . . Repair Stations 1 | . . . 1 . . . . . . . Recycling Units 12 | . 4 . 5 . . . 3 . . . Scanalyzers 1 | . . . . . . . 1 . . . Garrison Access 2 | . . . . . . . 2 . . . Terminal Hacks 8 | . . . 1 . 5 . 1 . 1 . Part Schematic 5 | . . . . . 5 . . . . . Open DSF 2 | . . . . . . . 1 . 1 . Zone Layout 1 | . . . 1 . . . . . . . Fabricator Hacks . | . . . . . . . . . . . Repair Station Hacks . | . . . . . . . . . . . Recycling Unit Hacks 9 | . 3 . 3 . . . 3 . . . Process 3 | . 1 . 1 . . . 1 . . . Report Inventory 3 | . 1 . 1 . . . 1 . . . Retrieve Matter 3 | . 1 . 1 . . . 1 . . . Scanalyzer 1 | . . . . . . . 1 . . . Insert Component 1 | . . . . . . . 1 . . . Garrison Access Hacks . | . . . . . . . . . . . Unauthorized Hacks . | . . . . . . . . . . . Terminals . | . . . . . . . . . . . Fabricators . | . . . . . . . . . . . Repair Stations . | . . . . . . . . . . . Recycling Units . | . . . . . . . . . . . Scanalyzers . | . . . . . . . . . . . Garrison Access . | . . . . . . . . . . . Data Cores Recovered . | . . . . . . . . . . . Used . | . . . . . . . . . . . Hacking Detections 7 | . 1 . 2 . . . 3 . 1 . Full Trace Events 1 | . . . . . . . 1 . . . Feedback Events . | . . . . . . . . . . . Feedback Blocked . | . . . . . . . . . . . Robot Schematics Acquired 3 | . . . . . 3 . . . . . Robots Built . | . . . . . . . . . . . Authchips . | . . . . . . . . . . . Time . | . . . . . . . . . . . Total Robot Build Rating . | . . . . . . . . . . . Part Schematics Acquired 19 | . . . . . 19 . . . . . Parts Built . | . . . . . . . . . . . Authchips . | . . . . . . . . . . . Time . | . . . . . . . . . . . Total Part Build Rating . | . . . . . . . . . . . Parts Repaired . | . . . . . . . . . . . Time . | . . . . . . . . . . . Parts Recycled . | . . . . . . . . . . . Recycled Matter 67 | . 1 . 51 . . . 15 . . . Retrieved Matter 67 | . 1 . 51 . . . 15 . . . Retrieved Components . | . . . . . . . . . . . Parts Scanalyzed . | . . . . . . . . . . . Part Schematics Acquired . | . . . . . . . . . . . Parts Damaged . | . . . . . . . . . . . Bothacking | -11 -10 -10 -9 -9 -7 -6 -6 -6 -6 -6 ------------ Run | Yrd Mat Min Mat Min Zio Pro Fac Was Fac DSF Used RIF Installer . | . . . . . . . . . . . Robots Hacked 6 | . . . . . . . 5 . . 1 Non-combat 5 | . . . . . . . 4 . . 1 Combat 1 | . . . . . . . 1 . . . Robot Hacks Applied 6 | . . . . . . . 5 . . 1 parse_system 2 | . . . . . . . 2 . . . no_distress 2 | . . . . . . . 1 . . 1 find_chute 2 | . . . . . . . 2 . . . Relay Couplers Released . | . . . . . . . . . . . Fabnet Peak Effective % . | . . . . . . . . . . . Robots Rewired . | . . . . . . . . . . . Allies Hacked . | . . . . . . . . . . . Hacks Repelled . | . . . . . . . . . . . Allies | -11 -10 -10 -9 -9 -7 -6 -6 -6 -6 -6 -------- Run | Yrd Mat Min Mat Min Zio Pro Fac Was Fac DSF Total Allies 7 | . . . . 3 4 . . . . . Largest Group 7 | . . . . 3 7 7 . . . . Highest-Rated Group 189 | . . . . 40 189 189 . . . . Highest-Rated Ally 39 | . . . . 16 39 39 . . . . Total Orders 1 | . . . . . . . 1 . . . RETURN 1 | . . . . . . . 1 . . . Ally Attacks 27 | . . . . . . 27 . . . . Total Damage 353 | . . . . . . 353 . . . . Kills 3 | . . . . . . 3 . . . . Allies Corrupted . | . . . . . . . . . . . Allies Melted . | . . . . . . . . . . . Intel | -11 -10 -10 -9 -9 -7 -6 -6 -6 -6 -6 ------- Run | Yrd Mat Min Mat Min Zio Pro Fac Was Fac DSF Robot Analysis Total . | . . . . . . . . . . . Derelict Logs Recovered 4 | . . 1 . 1 1 1 . . . . Drone Launches 1 | . . . . . . . 1 . . . Drone Recoveries 1 | . . . . . . . 1 . . . Zionite Intel Received 1 | . . . . . . . 1 . . . Prototype Stockpiles 1 | . . . . . . . 1 . . . Exploration | -11 -10 -10 -9 -9 -7 -6 -6 -6 -6 -6 ------------- Run | Yrd Mat Min Mat Min Zio Pro Fac Was Fac DSF Turns Passed 4016 | 62 355 294 154 277 788 852 1009 65 2 158 Spaces Moved 4138 | 55 313 333 167 390 1240 699 707 74 3 157 Core 78 | 5 . 23 . . . . . . . 50 Treads . | . . . . . . . . . . . Legs . | . . . . . . . . . . . Wheels 856 | 50 155 . . . . . 490 74 3 84 Hover 2976 | . . 240 167 390 1240 699 217 . . 23 Flight 228 | . 158 70 . . . . . . . . Fastest Speed 32 | 50 37 37 58 58 53 53 95 80 80 32 Average Speed 69 | 77 63 69 73 58 53 58 115 86 80 65 Slowest Speed 300 | 80 280 100 80 58 58 66 300 95 80 100 Overloaded Moves . | . . . . . . . . . . . Propulsion Burnouts . | . . . . . . . . . . . Robots Hopped 2 | . 2 . . . . . . . . . Cave-ins Triggered . | . . . . . . . . . . . Exploration Rate (%) 53 | 4 48 62 11 74 90 65 17 67 . 94 Regions Visited 10 Branch Regions 4 Pre-discovered Areas 3 | . . 1 . . 2 . . . . . Known Exits Taken 5 | . 1 1 1 . . 1 . . 1 . Unknown Exits Taken 3 | 1 . . . 1 1 . . . . . Scrap Searched 5 | . . . . 1 3 1 . . . . Spaces Dug 49 | . . . . . . 49 . . . . Terrain Destroyed 142 | . . 4 44 30 . 64 . . . . Melee . | . . . . . . . . . . . Projectile . | . . . . . . . . . . . AOE 142 | . . 4 44 30 . 64 . . . . Terrain Rammed . | . . . . . . . . . . . Walls Destroyed . | . . . . . . . . . . . Machines Disabled . | . . . . . . . . . . . Actions | -11 -10 -10 -9 -9 -7 -6 -6 -6 -6 -6 --------- Run | Yrd Mat Min Mat Min Zio Pro Fac Was Fac DSF Total 5057 | 64 396 380 184 427 1365 1120 841 74 2 204 Wait 619 | . 12 16 . 27 106 387 46 . . 25 Move 4125 | 54 308 332 166 389 1239 698 707 73 2 157 Hop 2 | . 2 . . . . . . . . . Pick Up 15 | . 5 3 . . 5 . 2 . . . Fast Attach 66 | 7 10 9 6 1 4 2 22 1 . 4 Attach 10 | . 2 2 . . 1 2 1 . . 2 Detach 21 | . 11 5 . 1 1 2 1 . . . Swap 1 | . 1 . . . . . . . . . Drop 37 | . 7 5 4 . 9 . 12 . . . Fire 97 | 3 38 8 8 9 . 8 21 . . 2 Melee 32 | . . . . . . 8 18 . . 6 Ram . | . . . . . . . . . . . Kick . | . . . . . . . . . . . Crush . | . . . . . . . . . . . Escape Stasis 26 | . . . . . . 13 8 . . 5 Rewire 6 | . . . . . . . 3 . . 3 Trap . | . . . . . . . . . . . Miscellaneous . | . . . . . . . . . . . Route ------- -11/Scrapyard -10/Materials (discovered 2 exits: *Mat / *Min) -10/Mines (discovered 2 exits: *Mat x2) -9/Materials -9/Mines (discovered 2 exits: *Mat / *Zio) -7/Zion -6/Proximity Caves -6/Factory -6/Waste -6/Factory -6/DSF (discovered 1 exit: *Fac) History --------- Turn | Location | Event 27 | -11/Scrapyard | Discovered new exit (range 15) 63 | -11/Scrapyard | Entered Materials 125 | -10/Materials | Discovered new exit (range 7) 261 | -10/Materials | Discovered new exit (range 16) 388 | -10/Materials | Identified exit to Mines 404 | -10/Materials | Identified exit to Materials 418 | -10/Materials | Entered Mines 423 | -10/Mines | Assembled infested the area 433 | -10/Mines | Discovered exit to Materials (range 8) 472 | -10/Mines | Core integrity fell below 50% 485 | -10/Mines | Core integrity fell below 20% 515 | -10/Mines | Lost 7 parts (2p3n1u1w) 578 | -10/Mines | Discovered exit to Materials (range 8) 590 | -10/Mines | Build established: Scavenger-Mutant 669 | -10/Mines | Learned location of Zion (-7) 674 | -10/Mines | Found a hidden stash of uninstalled traps 712 | -10/Mines | Entered Materials 712 | -9/Materials | Evolved 2 slots: Propulsion x2 712 | -9/Materials | Discovered new exit (range 14) 723 | -9/Materials | Identified exit to Mines 866 | -9/Materials | Entered Mines 893 | -9/Mines | Discovered new exit (range 6) 917 | -9/Mines | Identified exit to Materials 932 | -9/Mines | Destroyed 7 combat bots 945 | -9/Mines | Assisted by bots powering up and referring to "LRC-V3" 1125 | -9/Mines | Found a damaged Exp. Sensor Array with a note attached 1127 | -9/Mines | Found Prototype Device 1127 | -9/Mines | Identified Exp. Sensor Array 1133 | -9/Mines | A Derelict revealed a hidden shortcut to a safe place 1143 | -9/Mines | Entered Zion 1143 | -7/Zion | Accompanied by 3 allies 1314 | -7/Zion | Given the Hacking Drone Bay 1315 | -7/Zion | Found Prototype Device 1315 | -7/Zion | Identified Hacking Drone Bay 1374 | -7/Zion | Imprinted 1376 | -7/Zion | Declared Zion's savior 1428 | -7/Zion | Learned Factory emergency access door positions 1488 | -7/Zion | Found CR-A16's Pointy Stick 1508 | -7/Zion | Learned location of Data Miner (-6) 1597 | -7/Zion | Found Prototype Device 1597 | -7/Zion | Identified Phasing AFG 1814 | -7/Zion | Discovered new exit (range 13) 1931 | -7/Zion | Entered Proximity Caves 1931 | -6/Proximity Caves | Accompanied by 7 allies 1933 | -6/Proximity Caves | Spotter reported a threat 2072 | -6/Proximity Caves | Spotter reported a threat 2119 | -6/Proximity Caves | Identified exit to Factory 2271 | -6/Proximity Caves | Lost 3 parts (1n2w) 2526 | -6/Proximity Caves | Build established: Mutant 2722 | -6/Proximity Caves | Lost 3 allies 2783 | -6/Proximity Caves | Entered Factory 2783 | -6/Factory | Evolved 6 slots: Utility x4, Weapon x2 2809 | -6/Factory | Lost 4 allies 3742 | -6/Factory | Retrieved Zion intel report: Prototype Stockpiles 3792 | -6/Factory | Sucked down chute 3792 | -6/Factory | Entered Waste 3807 | -6/Waste | EMP discharged 3807 | -6/Waste | System corruption reached 10% 3814 | -6/Waste | Spotted C-40 Crusher 3817 | -6/Waste | Crushed by Compactor (1 part destroyed, 1 dropped) 3820 | -6/Waste | Crushed by Compactor (1 part destroyed, 1 dropped) 3826 | -6/Waste | Spotted C-40 Crusher 3827 | -6/Waste | Spotted C-40 Crusher 3839 | -6/Waste | Spotted C-40 Crusher 3844 | -6/Waste | Spotted C-40 Crusher 3846 | -6/Waste | Discovered new exit (range 10) 3851 | -6/Waste | Lost 4 parts (1p1n2w) 3856 | -6/Waste | Identified exit to Factory 3857 | -6/Waste | Entered Factory 3859 | -6/Factory | Identified exit to DSF 3859 | -6/Factory | Entered DSF 3899 | -6/DSF | Additional patrols routed to DSF 3902 | -6/DSF | Discovered new exit (range 16) 3918 | -6/DSF | Identified exit to Factory 3962 | -6/DSF | Core integrity fell below 50% 3993 | -6/DSF | Core integrity fell below 20% 3994 | -6/DSF | Lost 9 parts (2n2u5w) 4017 | -6/DSF | Destroyed by C-17 Slicer with Blade Saw Last Messages --------------- A-15 Conveyor is unpowered. Attempting to rewire A-15 Conveyor. A-15 Conveyor is unpowered. Knocked back. Acquired Linear Gravjet. Linear Gravjet severed. Acquired 11 matter. System corrupted: Matter fused (-6). Linear Gravjet severed. Hacking Suite severed. Triggered Stasis Trap. A bubble of rippling energy engulfs the area. Field strength at 94. Field strength at 88. Field strength at 82. Field strength at 70. Field strength at 64. Field strength at 58. Adv. Signal Interpreter severed. [Achievement: 5k Club] Map ----- +----------------------------------------------------+ | | | | | | | | | | | | | | | | | | | | | | | | | | | | | | | ????????????????????????????????????????? | | ????????????????????????????????????????? | | ????????????????????????????????????????? | | ????????????????????????????????????????? | | ?????????""#????????????????????????????? | | ?????????#"#????????????????????????????? | | ??????####"##?????????????###???????????? | | ??????#"""""#########??[[[!!#???????????? | | ??????#"""""##]]#[[[# [[[!!#???????????? | | ????"##"" c #???????????? | | ????""""" ==ggc@b #???????????? | | ????###"" ##]]#[[[### #?????????????? | | ??????### ###]]#[[[### ##????????????? | | ???????## ######?###!! ????????????? | | ???????# [[#????????! ?????????????? | | ???????# [[#????????! ?????????????? | | ???????## ###??????### ###???????????? | | ???????#[ ]]#??????#!! !!#???????????? | | ???????#[ ]]#??????#!! !!#???????????? | | ???????#[ ]]#???????!! !!????????????? | | ??????### ##########?# #?############# | | ??????# ##!!!#!!!### ###[[[#!!!## | | ??????# #"!!!#!!!## ##[[[#!!!## | | ??????# % ^ | | ??????# H ! | | ??????# = % % ! ! | | ??????# ##!!!#== ## ##!!!=% %## | | ??????# ##!!!# =### ###!!!#* %## | | ??????### ############ #########"## # | | ???????# ]]#???????!! [[??????##!! ! | | ???????# ]]#??????#!! [[#??????#!! ! | | ???????# ]]#??????#!! [[#??????#!! | | ???????## ###??????### ###??????### # | | ???????#] ]]#??????#[[ #??????# ! | | ???????#] ]]#??????#[[ #??????# ! | +----------------------------------------------------+ Best States ------------- Heat Dissipation 37 Energy Generation 18 Energy Capacity 265 Matter Stores 450 Matter Capacity 450 Sight Range 18 Robot Scan Range 20 Terrain Scan Range 20 Terrain Scan Density 10 Evasion (%) 62 Launcher Accuracy 20 Kinecelleration 30 Offensive Hacking 20 Item Schematics ----------------- Mak. System Shield | -7/Zion | Archive Cloaking Device | -7/Zion | Archive Imp. Carbon-fiber Leg | -7/Zion | Archive Imp. Kinecellerator | -7/Zion | Archive Coolant Injector | -7/Zion | Archive Bore Cannon | -7/Zion | Archive Imp. Hardlight Generator | -7/Zion | Archive Arm. Huge Wheel | -7/Zion | Archive Imp. Thermal Generator | -7/Zion | Archive Microactuators | -7/Zion | Archive Adv. Cooling System | -7/Zion | Archive System Guard | -7/Zion | Archive Flak Gun | -7/Zion | Archive Adv. Sensor Array | -7/Zion | Archive Riot Gun | -7/Zion | Free Battle Rifle | -7/Zion | Free Battle Cannon | -7/Zion | Free Slug Cannon | -7/Zion | Free Enh. Flamer | -7/Zion | Free Robot Schematics ------------------ R-06 Scavenger | -7/Zion | Archive P-60 Hacker | -7/Zion | Archive T-07 Excavator | -7/Zion | Archive Fabricated ------------ Nothing Alien Tech Used ----------------- None Achievements -------------- 5k Club Hunted I'm Back, Baby! The More The Merrier Challenges ------------ None Game ------ Seed HeatShieldTorch Manual? 0 Play Time 01:12:45 Cumulative 6.4 hours Start 2024.04.09 @ 19:19:55 End 2024.04.09 @ 21:36:26 Sessions 1 Manual Loads 0 Difficulty Rogue Special Mode None Game No. 11 Rogue 11 Adventurer 0 Explorer 0 Win Type - Total 0 Types 0/0/0/0/0/0/0/0/0 Lore% 12 Gallery% 13 Achievement% 12 Wizard Run 0 Options --------- Layout 0 ASCII 0 Keyboard 1 Movement Numpad Keybinds 0 Fullscreen 1 Font 18/SmallcapsGlow Map View 76x50 Zoom Use 0% Tactical HUD 0 Map Filters NONE Filters NONE Steam 1 RUN: cfa7ae9f-9f41-486f-8275-2f82ea1e05c3